fUST/lending_fUST_20240410
["ID","MTS","AMOUNT","RATE_DAILY","PERIOD"]
[322046644,1712718645134,-500.0,0.00024653,2]
[322046645,1712718645143,-500.0,0.00024653,2]
[322046646,1712718645154,-562.13,0.00024655,2]
[322046647,1712718645164,-619.7,0.00024655,2]
[322046648,1712718645174,-500.0,0.00024655,2]
[322046649,1712718645184,-500.0,0.00024655,2]
[322046650,1712718645194,-500.0,0.00024655,2]
[322046651,1712718645205,-598.37,0.00024655,2]
[322046652,1712718645216,-2346.89,0.00024655,2]
[322046653,1712718645226,-500.0,0.00024655,2]
[322046654,1712718645236,-500.0,0.00024655,2]
[322046655,1712718645246,-500.0,0.00024656,2]
[322046656,1712718645255,-500.0,0.00024656,2]
[322046657,1712718645356,-505.41,0.00024656,2]
[322046658,1712718645367,-500.0,0.00024656,2]
[322046659,1712718645376,-372.54,0.00024656,2]
[322046660,1712718645387,-500.0,0.00024656,2]
[322046661,1712718645397,-244.63952095,0.00024656,2]
[322046662,1712718645408,-3047.1,0.00024657,2]
[322046663,1712718645418,-865.12,0.00024719,2]
[322046664,1712718645428,-500.0,0.00024719,2]
[322046665,1712718645439,-500.0,0.00024719,2]
[322046666,1712718645450,-3276.89,0.00024719,2]
[322046667,1712718645460,-506.2,0.00024719,2]
[322046668,1712718645471,-717.66,0.00024719,2]
[322046669,1712718645481,-500.0,0.00024719,2]
[322046670,1712718645491,-1059.97,0.00024719,2]
[322046671,1712718645502,-589.37,0.0002472,2]
[322046672,1712718645513,-610.52,0.00024927,2]
[322046673,1712718645523,-500.0,0.00024927,2]
[322046674,1712718645533,-562.13,0.00024929,2]
[322046675,1712718645543,-619.7,0.00024929,2]
[322046676,1712718645553,-500.0,0.00024929,2]
[322046677,1712718645563,-500.0,0.00024929,2]
[322046678,1712718645573,-500.0,0.00024929,2]
[322046679,1712718645583,-598.37,0.00024929,2]
[322046680,1712718645595,-2346.89,0.00024929,2]
[322046681,1712718645606,-500.0,0.00024929,2]
[322046682,1712718645616,-500.0,0.00024929,2]
[322046683,1712718645627,-500.0,0.0002493,2]
[322046684,1712718645638,-505.41,0.0002493,2]
[322046685,1712718645648,-500.0,0.0002493,2]
[322046686,1712718645658,-500.0,0.0002493,2]
[322046687,1712718645669,-3047.1,0.00024931,2]
[322046688,1712718645679,-865.12,0.00024993,2]
[322046689,1712718645689,-500.0,0.00024993,2]
[322046690,1712718645698,-500.0,0.00024993,2]
[322046691,1712718645708,-3276.89,0.00024993,2]
[322046692,1712718645719,-506.2,0.00024993,2]
[322046693,1712718645730,-717.66,0.00024993,2]
[322046694,1712718645739,-500.0,0.00024993,2]
[322046695,1712718645751,-1059.97,0.00024993,2]
[322046696,1712718645761,-589.37,0.00024994,2]
[322046697,1712718645772,-422.70174015,0.00025,2]
[322046698,1712718645784,-5191.39061261,0.00025,7]
[322046699,1712718646026,-500.0,0.00021979,2]
[322046700,1712718646035,-500.0,0.00022189,2]
[322046701,1712718646044,-199.93908889,0.00022253,2]
[322046702,1712718646056,-300.06091111,0.00022253,2]
[322046703,1712718646065,-334.29840605,0.00022463,2]
[322046704,1712718646075,-209.30439518,0.00023774,2]
[322046705,1712718646084,-189.56884564,0.0002438,2]
[322046706,1712718646095,-166.76421389,0.00025,7]
[322046707,1712718646106,-262.00398222,0.00025,7]
[322046735,1712718646755,-500.0,0.00021979,2]
[322046736,1712718646767,-500.0,0.00022188,2]
[322046737,1712718646776,-500.0,0.00022189,2]
[322046738,1712718646786,-500.0,0.00022253,2]
[322046739,1712718646795,-500.0,0.00022462,2]
[322046740,1712718646805,-319.63833981,0.00022463,2]
[322046743,1712718898482,687.372286,0.00021001,2]
[322046744,1712718900017,400.0,0.00021001,2]
[322046745,1712718900513,548.90126628,0.00021001,2]
[322046746,1712718909589,562.4278214,0.00021001,2]
[322046749,1712719083868,393.5413219,0.00020889,2]
[322046750,1712719147546,24060.4663371,0.00020889,2]
[322046753,1712719376217,200.0,0.00020926,2]
[322046754,1712719400590,548.90126628,0.00021001,2]
[322046770,1712719663992,150.0,0.00018901,2]
[322046773,1712719817644,162.82315735,0.00020918,2]
[322046802,1712719831829,-548.90126628,0.00021017,2]
[322046804,1712719831839,-1931.15529922,0.00021018,2]
[322046806,1712719831848,-227.0980483,0.00021058,2]
[322046808,1712719831857,-188.28049972,0.00021696,2]
[322046810,1712719831866,-300.0,0.00021978,2]
[322046812,1712719831876,-300.0,0.00021978,2]
[322046814,1712719831885,-69.69245663,0.00021979,2]
[322046815,1712719831896,-424.54380298,0.00021979,2]
[322046817,1712719831905,-596.88521452,0.00021979,2]
[322046819,1712719831915,-502.89002103,0.00021979,2]
[322046820,1712719831924,-501.519856,0.00021979,2]
[322046821,1712719831934,-501.73429412,0.00021979,2]
[322046822,1712719831944,-248.45908726,0.00021979,2]
[322046823,1712719831954,-207.23266716,0.00021979,2]
[322046824,1712719831963,-500.0,0.00021979,2]
[322046825,1712719831972,-269.0398987,0.00022088,2]
[322046826,1712719831982,-500.0,0.00022187,2]
[322046827,1712719831990,-500.0,0.00022187,2]
[322046828,1712719831999,-500.0,0.00022188,2]
[322046829,1712719832008,-500.0,0.00022188,2]
[322046830,1712719832017,-500.0,0.00022188,2]
[322046831,1712719832027,-500.0,0.00022188,2]
[322046832,1712719832036,-387.364157,0.00022188,2]
[322046833,1712719832045,-500.0,0.00022188,2]
[322046834,1712719832055,-500.0,0.00022188,2]
[322046835,1712719832064,-500.0,0.00022188,2]
[322046836,1712719832074,-500.0,0.00022188,2]
[322046837,1712719832083,-500.0,0.00022188,2]
[322046838,1712719832092,-500.0,0.00022188,2]
[322046839,1712719832105,-500.0,0.00022188,2]
[322046840,1712719832115,-500.0,0.00022188,2]
[322046841,1712719832124,-311.46888922,0.00022188,2]
[322046842,1712719832250,-500.0,0.00022188,2]
[322046843,1712719832260,-500.0,0.00022188,2]
[322046844,1712719832270,-500.0,0.00022188,2]
[322046845,1712719832279,-500.0,0.00022188,2]
[322046846,1712719832288,-430.57013806,0.00022188,2]
[322046847,1712719832300,-69.42986194,0.00022188,2]
[322046848,1712719832309,-500.0,0.00022188,2]
[322046849,1712719832318,-93.09272206,0.00022188,2]
[322046850,1712719832329,-406.90727794,0.00022188,2]
[322046851,1712719832338,-500.0,0.00022188,2]
[322046852,1712719832347,-500.0,0.00022188,2]
[322046853,1712719832356,-411.42653899,0.00022188,2]
[322046854,1712719832365,-500.0,0.00022188,2]
[322046855,1712719832375,-539.67,0.00022188,2]
[322046856,1712719832383,-500.0,0.00022188,2]
[322046857,1712719832393,-500.0,0.00022188,2]
[322046858,1712719832402,-500.0,0.00022188,2]
[322046859,1712719832411,-500.0,0.00022188,2]
[322046860,1712719832420,-500.0,0.00022188,2]
[322046861,1712719832429,-500.0,0.00022188,2]
[322046862,1712719832438,-500.0,0.00022188,2]
[322046863,1712719832450,-500.0,0.00022188,2]
[322046864,1712719832459,-500.0,0.00022188,2]
[322046865,1712719832468,-500.0,0.00022188,2]
[322046866,1712719832477,-500.0,0.00022188,2]
[322046867,1712719832486,-403.38533834,0.00022188,2]
[322046868,1712719832495,-500.0,0.00022188,2]
[322046869,1712719832505,-500.0,0.00022188,2]
[322046870,1712719832514,-500.0,0.00022188,2]
[322046871,1712719832523,-500.0,0.00022188,2]
[322046872,1712719832532,-500.0,0.00022188,2]
[322046873,1712719832542,-500.0,0.00022188,2]
[322046874,1712719832551,-521.470582,0.00022188,2]
[322046875,1712719832560,-500.0,0.00022188,2]
[322046876,1712719832569,-500.0,0.00022188,2]
[322046877,1712719832578,-948.92,0.00022188,2]
[322046878,1712719832587,-500.0,0.00022188,2]
[322046879,1712719832596,-500.0,0.00022188,2]
[322046880,1712719832605,-500.0,0.00022188,2]
[322046881,1712719832614,-500.0,0.00022188,2]
[322046882,1712719832623,-500.0,0.00022188,2]
[322046883,1712719832632,-500.0,0.00022188,2]
[322046884,1712719832641,-500.0,0.00022188,2]
[322046885,1712719832651,-500.0,0.00022188,2]
[322046886,1712719832660,-500.0,0.00022188,2]
[322046887,1712719832669,-500.0,0.00022188,2]
[322046888,1712719832679,-500.0,0.00022188,2]
[322046889,1712719832688,-500.0,0.00022188,2]
[322046890,1712719832699,-500.0,0.00022188,2]
[322046891,1712719832708,-500.0,0.00022188,2]
[322046892,1712719832718,-500.0,0.00022188,2]
[322046893,1712719832726,-500.0,0.00022188,2]
[322046894,1712719832735,-500.0,0.00022188,2]
[322046895,1712719832745,-1623.54,0.00022188,2]
[322046896,1712719832754,-500.0,0.00022188,2]
[322046897,1712719832763,-500.0,0.00022188,2]
[322046898,1712719832772,-500.0,0.00022188,2]
[322046899,1712719832781,-2985.19,0.00022188,2]
[322046900,1712719832790,-500.0,0.00022188,2]
[322046901,1712719832799,-503.42551836,0.00022188,2]
[322046902,1712719832808,-520.98050546,0.00022188,2]
[322046903,1712719832817,-500.0,0.00022188,2]
[322046904,1712719832826,-500.0,0.00022188,2]
[322046905,1712719832835,-500.0,0.00022188,2]
[322046906,1712719832843,-500.0,0.00022188,2]
[322046907,1712719832853,-500.0,0.00022188,2]
[322046908,1712719832862,-500.0,0.00022188,2]
[322046909,1712719832870,-648.8,0.00022188,2]
[322046910,1712719832879,-500.0,0.00022188,2]
[322046911,1712719832888,-500.0,0.00022188,2]
[322046912,1712719832897,-500.0,0.00022188,2]
[322046913,1712719832906,-500.0,0.00022188,2]
[322046914,1712719832915,-1057.08,0.00022188,2]
[322046915,1712719832924,-500.0,0.00022188,2]
[322046916,1712719832933,-500.0,0.00022189,2]
[322046917,1712719832942,-500.0,0.00022189,2]
[322046918,1712719832950,-501.66992607,0.00022189,2]
[322046919,1712719832959,-160.9641931,0.00022189,2]
[322046920,1712719832968,-500.0,0.00022189,2]
[322046921,1712719832978,-518.67201066,0.00022189,2]
[322046922,1712719832987,-500.0,0.00022189,2]
[322046923,1712719832997,-503.45770841,0.00022189,2]
[322046924,1712719833006,-500.0,0.00022189,2]
[322046925,1712719833015,-505.67242862,0.00022189,2]
[322046926,1712719833024,-500.0,0.00022189,2]
[322046927,1712719833034,-500.0,0.00022189,2]
[322046928,1712719833043,-500.0,0.00022189,2]
[322046929,1712719833053,-519.33224481,0.00022189,2]
[322046930,1712719833061,-500.0,0.00022189,2]
[322046931,1712719833071,-500.0,0.00022189,2]
[322046932,1712719833082,-500.0,0.00022189,2]
[322046933,1712719833092,-500.0,0.00022189,2]
[322046934,1712719833105,-500.0,0.00022189,2]
[322046935,1712719833115,-500.0,0.00022189,2]
[322046936,1712719833124,-500.0,0.00022189,2]
[322046937,1712719833133,-401.77249553,0.00022189,2]
[322046938,1712719833142,-531.83680044,0.00022189,2]
[322046939,1712719833151,-500.0,0.00022189,2]
[322046940,1712719833160,-500.0,0.00022189,2]
[322046941,1712719833171,-500.0,0.00022189,2]
[322046942,1712719833182,-425.18338309,0.00022189,2]
[322046943,1712719833191,-500.0,0.00022189,2]
[322046944,1712719833201,-500.0,0.00022189,2]
[322046945,1712719833210,-500.0,0.00022189,2]
[322046946,1712719833219,-500.0,0.00022189,2]
[322046947,1712719833227,-560.0,0.00022189,2]
[322046948,1712719833237,-500.0,0.00022189,2]
[322046949,1712719833246,-180.36166019,0.00022189,2]
[322046950,1712719833255,-500.0,0.00022189,2]
[322046951,1712719833264,-284.51298921,0.00022189,2]
[322046952,1712719833274,-500.0,0.00022189,2]
[322046953,1712719833283,-500.0,0.00022189,2]
[322046954,1712719833293,-500.0,0.00022189,2]
[322046955,1712719833302,-500.0,0.00022189,2]
[322046956,1712719833312,-500.0,0.00022189,2]
[322046957,1712719833322,-500.0,0.00022189,2]
[322046958,1712719833331,-500.0,0.00022189,2]
[322046959,1712719833341,-500.0,0.00022189,2]
[322046960,1712719833350,-500.0,0.00022189,2]
[322046961,1712719833358,-581.81188015,0.00022189,2]
[322046962,1712719833367,-500.0,0.00022189,2]
[322046963,1712719833377,-500.0,0.00022189,2]
[322046964,1712719833386,-500.0,0.00022189,2]
[322046965,1712719833398,-596.55194153,0.00022189,2]
[322046966,1712719833407,-255.76883471,0.00022189,2]
[322046967,1712719833416,-153.90176671,0.00022362,2]
[322046968,1712719833424,-208.6181205,0.00022461,2]
[322046969,1712719833434,-499.23892402,0.00022461,2]
[322046970,1712719833444,-486.77561449,0.00022461,2]
[322046971,1712719833454,-430.54663828,0.00022461,2]
[322046972,1712719833463,-500.0,0.00022461,2]
[322046973,1712719833472,-500.0,0.00022461,2]
[322046974,1712719833481,-3211.53156628,0.00022462,2]
[322046975,1712719833491,-500.0,0.00022462,2]
[322046976,1712719833499,-500.0,0.00022462,2]
[322046977,1712719833508,-500.0,0.00022462,2]
[322046978,1712719833518,-500.0,0.00022462,2]
[322046979,1712719833526,-500.0,0.00022462,2]
[322046980,1712719833535,-500.0,0.00022462,2]
[322046981,1712719833545,-500.0,0.00022462,2]
[322046982,1712719833553,-500.0,0.00022462,2]
[322046983,1712719833563,-500.0,0.00022462,2]
[322046984,1712719833572,-500.0,0.00022462,2]
[322046985,1712719833581,-500.0,0.00022462,2]
[322046986,1712719833591,-500.0,0.00022462,2]
[322046987,1712719833600,-500.0,0.00022462,2]
[322046988,1712719833609,-500.0,0.00022462,2]
[322046989,1712719833618,-500.0,0.00022462,2]
[322046990,1712719833627,-500.0,0.00022462,2]
[322046991,1712719833635,-539.67,0.00022462,2]
[322046992,1712719833645,-500.0,0.00022462,2]
[322046993,1712719833653,-500.0,0.00022462,2]
[322046994,1712719833663,-500.0,0.00022462,2]
[322046995,1712719833672,-504.84781134,0.00022462,2]
[322046996,1712719833681,-500.0,0.00022462,2]
[322046997,1712719833690,-500.0,0.00022462,2]
[322046998,1712719833701,-500.0,0.00022462,2]
[322046999,1712719833710,-500.0,0.00022462,2]
[322047000,1712719833720,-500.0,0.00022462,2]
[322047001,1712719833729,-500.0,0.00022462,2]
[322047002,1712719833738,-191.626109,0.00022462,2]
[322047003,1712719833747,-500.0,0.00022462,2]
[322047004,1712719833756,-500.0,0.00022462,2]
[322047005,1712719833765,-504.06903233,0.00022462,2]
[322047006,1712719833774,-948.92,0.00022462,2]
[322047007,1712719833783,-380.44081084,0.00022462,2]
[322047008,1712719833792,-500.0,0.00022462,2]
[322047009,1712719833802,-500.0,0.00022462,2]
[322047010,1712719833811,-500.0,0.00022462,2]
[322047011,1712719833820,-55.63185811,0.00022462,2]
[322047068,1712719837876,-1866.41705732,0.00021016,2]
[322047069,1712719837886,-444.36814189,0.00022462,2]
[322047070,1712719837895,-500.0,0.00022462,2]
[322047071,1712719837905,-500.0,0.00022462,2]
[322047072,1712719837914,-500.0,0.00022462,2]
[322047073,1712719837924,-500.0,0.00022462,2]
[322047074,1712719837934,-506.88398481,0.00022462,2]
[322047075,1712719837945,-500.0,0.00022462,2]
[322047076,1712719837955,-504.95897543,0.00022462,2]
[322047077,1712719837965,-500.0,0.00022462,2]
[322047078,1712719837975,-1623.54,0.00022462,2]
[322047079,1712719837983,-500.0,0.00022462,2]
[322047080,1712719837993,-500.0,0.00022462,2]
[322047081,1712719838003,-2985.19,0.00022462,2]
[322047082,1712719838013,-500.0,0.00022462,2]
[322047083,1712719838022,-500.0,0.00022462,2]
[322047084,1712719838031,-500.0,0.00022462,2]
[322047085,1712719838041,-500.0,0.00022462,2]
[322047086,1712719838049,-500.0,0.00022462,2]
[322047087,1712719838059,-500.0,0.00022462,2]
[322047088,1712719838068,-648.8,0.00022462,2]
[322047089,1712719838077,-500.0,0.00022462,2]
[322047090,1712719838086,-500.0,0.00022462,2]
[322047091,1712719838096,-500.0,0.00022462,2]
[322047092,1712719838110,-500.0,0.00022462,2]
[322047093,1712719838120,-1057.08,0.00022462,2]
[322047094,1712719838129,-500.0,0.00022462,2]
[322047095,1712719838138,-504.31633005,0.00022463,2]
[322047096,1712719838149,-307.88566827,0.00022463,2]
[322047097,1712719838158,-500.0,0.00022463,2]
[322047098,1712719838167,-500.0,0.00022463,2]
[322047099,1712719838176,-500.0,0.00022463,2]
[322047100,1712719838186,-598.39,0.00022463,2]
[322047101,1712719838198,-500.0,0.00022463,2]
[322047102,1712719838209,-500.0,0.00022463,2]
[322047103,1712719838220,-500.0,0.00022463,2]
[322047104,1712719838230,-500.0,0.00022463,2]
[322047105,1712719838239,-500.0,0.00022463,2]
[322047106,1712719838250,-212.11918038,0.00022463,2]
[322047107,1712719838259,-500.0,0.00022463,2]
[322047108,1712719838269,-500.0,0.00022463,2]
[322047109,1712719838278,-500.0,0.00022463,2]
[322047110,1712719838287,-500.0,0.00022463,2]
[322047111,1712719838297,-500.0,0.00022463,2]
[322047112,1712719838306,-500.0,0.00022463,2]
[322047113,1712719838315,-500.0,0.00022463,2]
[322047114,1712719838325,-2459.97,0.00022463,2]
[322047115,1712719838334,-500.0,0.00022463,2]
[322047116,1712719838343,-500.0,0.00022463,2]
[322047117,1712719838352,-500.0,0.00022463,2]
[322047118,1712719838361,-500.0,0.00022463,2]
[322047119,1712719838370,-500.0,0.00022463,2]
[322047120,1712719838379,-500.0,0.00022463,2]
[322047122,1712719838389,-500.0,0.00022463,2]
[322047124,1712719838398,-500.0,0.00022735,2]
[322047125,1712719838407,-500.0,0.00022735,2]
[322047126,1712719838416,-27313.40873317,0.00022736,2]
[322047127,1712719838425,-500.0,0.00022736,2]
[322047129,1712719838434,-500.0,0.00022736,2]
[322047130,1712719838443,-500.0,0.00022736,2]
[322047131,1712719838452,-500.0,0.00022736,2]
[322047132,1712719838461,-500.0,0.00022736,2]
[322047133,1712719838470,-201.85256798,0.00022736,2]
[322047134,1712719838480,-500.0,0.00022736,2]
[322047135,1712719838489,-500.0,0.00022736,2]
[322047136,1712719838499,-500.0,0.00022736,2]
[322047137,1712719838508,-178.74,0.00022736,2]
[322047138,1712719838517,-500.0,0.00022736,2]
[322047139,1712719838527,-500.0,0.00022736,2]
[322047140,1712719838535,-539.67,0.00022736,2]
[322047141,1712719838544,-500.0,0.00022736,2]
[322047142,1712719838554,-500.0,0.00022736,2]
[322047143,1712719838563,-500.0,0.00022736,2]
[322047144,1712719838572,-500.0,0.00022736,2]
[322047145,1712719838581,-500.0,0.00022736,2]
[322047146,1712719838589,-500.0,0.00022736,2]
[322047147,1712719838598,-248.15,0.00022736,2]
[322047148,1712719838607,-500.0,0.00022736,2]
[322047149,1712719838615,-500.0,0.00022736,2]
[322047150,1712719838624,-948.92,0.00022736,2]
[322047151,1712719838633,-500.0,0.00022736,2]
[322047152,1712719838642,-500.0,0.00022736,2]
[322047153,1712719838651,-500.0,0.00022736,2]
[322047154,1712719838661,-500.0,0.00022736,2]
[322047155,1712719838670,-500.0,0.00022736,2]
[322047156,1712719838678,-500.0,0.00022736,2]
[322047157,1712719838687,-500.0,0.00022736,2]
[322047158,1712719838697,-500.0,0.00022736,2]
[322047159,1712719838804,-500.0,0.00022736,2]
[322047160,1712719838815,-500.0,0.00022736,2]
[322047161,1712719838824,-1623.54,0.00022736,2]
[322047162,1712719838834,-500.0,0.00022736,2]
[322047163,1712719838843,-500.0,0.00022736,2]
[322047164,1712719838853,-2985.19,0.00022736,2]
[322047165,1712719838862,-500.0,0.00022736,2]
[322047166,1712719838871,-500.0,0.00022736,2]
[322047167,1712719838880,-500.0,0.00022736,2]
[322047168,1712719838889,-500.0,0.00022736,2]
[322047169,1712719838899,-500.0,0.00022736,2]
[322047170,1712719838908,-648.8,0.00022736,2]
[322047171,1712719838916,-500.0,0.00022736,2]
[322047172,1712719838925,-500.0,0.00022736,2]
[322047173,1712719838935,-500.0,0.00022736,2]
[322047174,1712719838943,-500.0,0.00022736,2]
[322047175,1712719838955,-1057.08,0.00022736,2]
[322047176,1712719838964,-500.0,0.00022737,2]
[322047177,1712719838973,-523.259385,0.00022737,2]
[322047178,1712719838983,-500.0,0.00022737,2]
[322047179,1712719838992,-500.0,0.00022737,2]
[322047180,1712719839003,-500.0,0.00022737,2]
[322047181,1712719839013,-500.0,0.00022737,2]
[322047182,1712719839022,-500.0,0.00022737,2]
[322047183,1712719839031,-500.0,0.00022737,2]
[322047184,1712719839041,-500.0,0.00022737,2]
[322047185,1712719839050,-500.0,0.00022737,2]
[322047186,1712719839059,-500.0,0.00022737,2]
[322047187,1712719839069,-2459.97,0.00022737,2]
[322047188,1712719839078,-500.0,0.00022737,2]
[322047189,1712719839088,-500.0,0.00022737,2]
[322047190,1712719839098,-562.38731302,0.00022737,2]
[322047191,1712719839110,-622.78627392,0.00022737,2]
[322047192,1712719839119,-644.21022522,0.00022737,2]
[322047193,1712719839128,-2000.0,0.0002291,2]
[322047194,1712719839137,-500.0,0.00023009,2]
[322047195,1712719839146,-500.0,0.00023009,2]
[322047196,1712719839156,-500.0,0.0002301,2]
[322047197,1712719839165,-500.0,0.0002301,2]
[322047198,1712719839176,-500.0,0.0002301,2]
[322047199,1712719839186,-500.0,0.0002301,2]
[322047200,1712719839195,-500.0,0.0002301,2]
[322047201,1712719839206,-500.0,0.0002301,2]
[322047202,1712719839215,-500.0,0.0002301,2]
[322047203,1712719839225,-500.0,0.0002301,2]
[322047204,1712719839234,-500.0,0.0002301,2]
[322047205,1712719839244,-539.67,0.0002301,2]
[322047206,1712719839253,-500.0,0.0002301,2]
[322047207,1712719839262,-500.0,0.0002301,2]
[322047208,1712719839272,-254.10576726,0.0002301,2]
[322047210,1712719839282,-500.0,0.0002301,2]
[322047211,1712719839291,-500.0,0.0002301,2]
[322047212,1712719839301,-500.0,0.0002301,2]
[322047213,1712719839310,-589.48404807,0.0002301,2]
[322047214,1712719839320,-500.0,0.0002301,2]
[322047215,1712719839329,-948.92,0.0002301,2]
[322047216,1712719839338,-500.0,0.0002301,2]
[322047217,1712719839347,-500.0,0.0002301,2]
[322047218,1712719839356,-500.0,0.0002301,2]
[322047219,1712719839366,-500.0,0.0002301,2]
[322047220,1712719839375,-500.0,0.0002301,2]
[322047221,1712719839384,-500.0,0.0002301,2]
[322047222,1712719839393,-500.0,0.0002301,2]
[322047223,1712719839403,-1623.54,0.0002301,2]
[322047225,1712719839412,-500.0,0.0002301,2]
[322047226,1712719839421,-500.0,0.0002301,2]
[322047227,1712719839430,-2985.19,0.0002301,2]
[322047229,1712719839439,-616.42300415,0.0002301,2]
[322047230,1712719839453,-500.0,0.0002301,2]
[322047231,1712719839462,-500.0,0.0002301,2]
[322047232,1712719839472,-313.63808685,0.0002301,2]
[322047233,1712719839481,-171.83381504,0.0002301,2]
[322047234,1712719839490,-648.8,0.0002301,2]
[322047235,1712719839501,-500.0,0.0002301,2]
[322047236,1712719839510,-500.0,0.0002301,2]
[322047237,1712719839519,-500.0,0.0002301,2]
[322047238,1712719839529,-1057.08,0.0002301,2]
[322047239,1712719839539,-500.0,0.00023011,2]
[322047240,1712719839548,-500.0,0.00023011,2]
[322047241,1712719839557,-500.0,0.00023011,2]
[322047242,1712719839567,-500.0,0.00023011,2]
[322047243,1712719839576,-500.0,0.00023011,2]
[322047244,1712719839585,-500.0,0.00023011,2]
[322047245,1712719839594,-2459.97,0.00023011,2]
[322047246,1712719839603,-500.0,0.00023011,2]
[322047247,1712719839611,-500.0,0.00023011,2]
[322047248,1712719839621,-500.0,0.00023283,2]
[322047249,1712719839630,-500.0,0.00023283,2]
[322047250,1712719839639,-500.0,0.00023284,2]
[322047251,1712719839648,-500.0,0.00023284,2]
[322047252,1712719839657,-500.0,0.00023284,2]
[322047253,1712719839666,-539.67,0.00023284,2]
[322047254,1712719839675,-500.0,0.00023284,2]
[322047255,1712719839684,-500.0,0.00023284,2]
[322047256,1712719839693,-429.20825194,0.00023284,2]
[322047257,1712719839706,-500.0,0.00023284,2]
[322047259,1712719839715,-500.0,0.00023284,2]
[322047260,1712719839724,-432.81200396,0.00023284,2]
[322047261,1712719839733,-948.92,0.00023284,2]
[322047262,1712719839742,-500.0,0.00023284,2]
[322047263,1712719839752,-500.0,0.00023284,2]
[322047264,1712719839761,-500.0,0.00023284,2]
[322047265,1712719839771,-500.0,0.00023284,2]
[322047266,1712719839780,-500.0,0.00023284,2]
[322047267,1712719839789,-500.0,0.00023284,2]
[322047268,1712719839798,-1623.54,0.00023284,2]
[322047269,1712719839807,-500.0,0.00023284,2]
[322047270,1712719839816,-500.0,0.00023284,2]
[322047271,1712719839825,-2985.19,0.00023284,2]
[322047272,1712719839835,-500.0,0.00023284,2]
[322047273,1712719839843,-500.0,0.00023284,2]
[322047274,1712719839853,-648.8,0.00023284,2]
[322047275,1712719839862,-500.0,0.00023284,2]
[322047276,1712719839871,-500.0,0.00023284,2]
[322047277,1712719839880,-500.0,0.00023284,2]
[322047278,1712719839889,-1057.08,0.00023284,2]
[322047279,1712719839898,-500.0,0.00023285,2]
[322047280,1712719839907,-500.0,0.00023285,2]
[322047281,1712719839917,-500.0,0.00023285,2]
[322047282,1712719839926,-500.0,0.00023285,2]
[322047283,1712719839935,-500.0,0.00023285,2]
[322047284,1712719839944,-500.0,0.00023285,2]
[322047285,1712719839955,-2459.97,0.00023285,2]
[322047286,1712719839964,-500.0,0.00023285,2]
[322047287,1712719839973,-500.0,0.00023557,2]
[322047288,1712719839982,-500.0,0.00023557,2]
[322047289,1712719839991,-500.0,0.00023558,2]
[322047290,1712719840001,-500.0,0.00023558,2]
[322047291,1712719840010,-500.0,0.00023558,2]
[322047292,1712719840019,-539.67,0.00023558,2]